bitfinex/quotes_BTCUSD_20240715
["timestamp","ask_amount","ask_price","bid_price","bid_amount"]
[1721055915246,0.22211791,63317.0,63309.0,0.08105238]
[1721055915247,0.16211791,63317.0,63309.0,0.08105238]
[1721055915465,0.16211791,63317.0,63310.0,0.014]
[1721055915903,0.16211791,63317.0,63309.0,0.08105238]
[1721055916146,0.22211791,63317.0,63309.0,0.08105238]
[1721055916394,0.12,63314.0,63304.0,0.014]
[1721055916622,0.32861791,63313.0,63304.0,0.014]
[1721055917072,0.16211791,63313.0,63304.0,0.014]
[1721055917323,0.16211791,63313.0,63305.0,0.08105238]
[1721055917547,0.12,63311.0,63295.0,0.12740026]
[1721055917813,0.16211791,63310.0,63296.0,0.09749419]
[1721055918060,0.16211791,63310.0,63309.0,0.014]
[1721055918472,0.16211791,63310.0,63295.0,0.08105238]
[1721055918676,0.12,63308.0,63296.0,0.09759658]
[1721055918879,0.16211791,63310.0,63296.0,0.08105238]
[1721055918880,0.28211791,63307.0,63296.0,0.08105238]
[1721055919352,0.12,63304.0,63296.0,0.08105238]
[1721055919526,0.12,63304.0,63289.0,0.06553526]
[1721055919527,0.16211791,63303.0,63291.0,0.1]
[1721055919758,0.16211791,63303.0,63295.0,0.08105238]
[1721055921139,0.12,63298.0,63289.0,0.063274]
[1721055921342,0.12,63298.0,63279.0,0.86242022]
[1721055921343,0.16211791,63297.0,63282.0,0.158022]
[1721055921546,0.16211791,63297.0,63288.0,0.08105238]
[1721055921895,0.12,63296.0,63286.0,0.063287]
[1721055922096,0.1665,63294.0,63280.0,0.08105238]
[1721055922300,0.16211791,63293.0,63280.0,0.08105238]
[1721055922917,0.2,63310.0,63269.0,0.8115973]
[1721055922918,0.2665,63288.0,63275.0,0.08105238]
[1721055923140,0.12,63286.0,63275.0,0.08105238]
[1721055923321,0.16211791,63285.0,63275.0,0.08105238]
[1721055923476,0.00223125,63284.0,63282.0,0.08105238]
[1721055923680,0.1,63294.0,63282.0,0.08105238]
[1721055923874,0.1,63294.0,63280.0,0.014]
[1721055923875,0.26211791,63293.0,63280.0,0.014]
[1721055924077,0.38211791,63293.0,63280.0,0.014]
[1721055924285,0.38211791,63293.0,63275.0,0.08105238]
[1721055924286,0.12,63290.0,63275.0,0.08105238]
[1721055924507,0.26211791,63293.0,63275.0,0.09505238]
[1721055924508,0.16211791,63289.0,63275.0,0.09505238]
[1721055925003,0.16211791,63289.0,63282.0,0.08105238]
[1721055925793,0.1,63299.0,63282.0,0.08105238]
[1721055925992,0.1,63297.0,63294.0,0.00306353]
[1721055926164,0.16211791,63296.0,63294.0,0.00306353]
[1721055926342,0.16211791,63296.0,63293.0,0.08105238]
[1721055926546,0.16211791,63295.0,63283.0,0.00306353]
[1721055926747,0.001,63289.0,63283.0,0.00306353]
[1721055926949,0.16311791,63289.0,63283.0,0.00306353]
[1721055927442,0.001,63289.0,63288.0,0.474022]
[1721055927649,0.1,63314.0,63299.0,0.157978]
[1721055927857,0.12,63321.0,63299.0,0.157978]
[1721055927858,0.1665,63312.0,63303.0,0.08105238]
[1721055928072,0.16211791,63311.0,63303.0,0.08105238]
[1721055928607,0.16211791,63311.0,63296.0,0.08105238]
[1721055928791,0.16211791,63311.0,63303.0,0.08105238]
[1721055928994,0.1,63323.0,63310.0,0.08105238]
[1721055929203,0.16211791,63322.0,63318.0,0.08105238]
[1721055929837,37.14612312,63336.0,63319.0,0.1]
[1721055929838,37.04612312,63336.0,63319.0,0.1]
[1721055930034,37.04612312,63336.0,63318.0,0.08105238]
[1721055930035,37.04612312,63336.0,63325.0,0.08105238]
[1721055930235,37.04612312,63336.0,63329.0,0.157905]
[1721055930439,37.04612312,63336.0,63328.0,0.1]
[1721055930854,37.04612312,63336.0,63329.0,0.157905]
[1721055931062,37.04612312,63336.0,63329.0,0.889527]
[1721055931258,37.04612312,63336.0,63329.0,1.525338]
[1721055931464,37.04612312,63336.0,63329.0,1.305338]
[1721055931636,37.04612312,63336.0,63329.0,0.989527]
[1721055932384,37.04612312,63336.0,63329.0,0.357905]
[1721055932550,0.141353,63330.0,63329.0,0.357905]
[1721055933003,0.140353,63330.0,63327.0,0.1]
[1721055933359,0.141353,63330.0,63329.0,0.158905]
[1721055933564,0.141353,63330.0,63329.0,0.474716]
[1721055933762,37.04612312,63336.0,63331.0,0.157898]
[1721055934411,37.04612312,63336.0,63330.0,0.00306353]
[1721055934614,37.04612312,63336.0,63330.0,0.16096553]
[1721055934862,37.04612312,63336.0,63330.0,0.157902]
[1721055935182,37.20824103,63336.0,63329.0,0.015]
[1721055935335,0.22211791,63335.0,63329.0,0.015]
[1721055935556,0.22211791,63335.0,63329.0,0.001]
[1721055935760,0.16211791,63335.0,63329.0,0.001]
[1721055935936,0.2865,63330.0,63329.0,0.014]
[1721055936144,0.44861791,63330.0,63329.0,0.014]
[1721055936336,0.12,63328.0,63323.0,0.00306353]
[1721055936653,0.16211791,63327.0,63312.0,0.4664]
[1721055936836,0.16211791,63327.0,63312.0,0.1]
[1721055937035,0.12,63320.0,63312.0,0.1]
[1721055937234,0.16211791,63319.0,63308.0,0.1]
[1721055937446,0.12,63317.0,63308.0,0.1]
[1721055937649,0.12,63318.0,63308.0,0.1]
[1721055937961,0.16211791,63318.0,63310.0,0.08105238]
[1721055938533,0.16211791,63318.0,63308.0,0.1]
[1721055938950,0.12,63311.0,63307.0,0.00306353]
[1721055939306,0.2,63324.0,63299.0,0.1]
[1721055939307,0.16211791,63310.0,63299.0,0.1]
[1721055939439,0.16211791,63310.0,63308.0,0.014]
[1721055939852,0.12,63309.0,63308.0,0.014]
[1721055940052,0.12,63306.0,63299.0,0.1]
[1721055940277,0.12,63306.0,63297.0,0.1]
[1721055940504,0.12,63304.0,63294.0,0.1]
[1721055940689,0.12,63304.0,63296.0,0.08105238]
[1721055940690,0.16211791,63303.0,63296.0,0.08105238]
[1721055941670,0.12,63304.0,63296.0,0.08105238]
[1721055941865,0.12,63304.0,63294.0,0.001]
[1721055941866,0.12,63295.0,63294.0,0.001]
[1721055942106,0.12,63296.0,63294.0,0.001]
[1721055942256,0.1,63301.0,63294.0,0.001]
[1721055942257,0.12,63295.0,63294.0,0.001]
[1721055942710,0.44861791,63295.0,63294.0,0.001]
[1721055942880,0.54861791,63295.0,63294.0,0.001]
[1721055943717,0.2265,63290.0,63275.0,0.1]
[1721055943956,0.16211791,63289.0,63275.0,0.1]
[1721055944499,0.16211791,63289.0,63281.0,0.08105238]
[1721055944700,0.06,63288.0,63281.0,0.08105238]
[1721055944906,0.12,63287.0,63281.0,0.08105238]
[1721055945462,0.06,63278.0,63275.0,0.01036323]
[1721055945624,0.06,63276.0,63275.0,0.01036323]
[1721055945988,0.16211791,63277.0,63275.0,0.01036323]
[1721055946193,0.12,63285.0,63276.0,0.08105238]
[1721055946434,0.1665,63283.0,63276.0,0.08105238]
[1721055946637,0.16211791,63282.0,63276.0,0.08105238]
[1721055947046,0.32861791,63282.0,63281.0,0.015]
[1721055947254,0.1665,63276.0,63271.0,0.00458747]
[1721055947477,0.16211791,63275.0,63271.0,0.00458747]
[1721055947667,0.2,63291.0,63271.0,0.00458747]
[1721055947668,0.001,63283.0,63271.0,0.00458747]
[1721055947896,0.001,63283.0,63278.0,0.08105238]
[1721055948033,0.12,63287.0,63278.0,0.08105238]
[1721055948212,0.12,63280.0,63276.0,0.014]
[1721055948438,0.16211791,63279.0,63277.0,0.08105238]
[1721055948842,0.12,63272.0,63271.0,0.00458747]
[1721055949091,0.28211791,63272.0,63271.0,0.00458747]
[1721055949584,0.44861791,63272.0,63271.0,0.00458747]
[1721055949796,0.32861791,63272.0,63271.0,0.00458747]
[1721055950138,0.44861791,63272.0,63271.0,0.00458747]
[1721055950315,0.44861791,63272.0,63271.0,0.01658747]
[1721055950514,0.54861791,63272.0,63271.0,0.01658747]
[1721055950771,0.54861791,63272.0,63271.0,0.00458747]
[1721055950994,0.54861791,63272.0,63269.0,0.0086841]
[1721055950995,0.3865,63270.0,63269.0,0.0086841]
[1721055951197,0.54861791,63270.0,63269.0,0.0086841]
[1721055951609,0.3865,63265.0,63264.0,0.009174]
[1721055951810,0.54861791,63265.0,63264.0,0.009174]
[1721055952223,0.74861791,63265.0,63264.0,0.009174]
[1721055952432,0.3865,63263.0,63262.0,0.00031682]
[1721055952566,0.54861791,63263.0,63262.0,0.00031682]
[1721055954227,0.74861791,63263.0,63262.0,0.00031682]
[1721055954420,0.54861791,63263.0,63262.0,0.00031682]
[1721055954620,0.84861791,63263.0,63262.0,0.00031682]
[1721055954821,0.84961791,63263.0,63262.0,0.00031682]
[1721055955019,0.84961791,63263.0,63262.0,0.01131682]
[1721055955226,0.3865,63258.0,63257.0,0.00618345]
[1721055955445,0.54861791,63258.0,63257.0,0.00618345]
[1721055956143,0.32861791,63258.0,63257.0,0.00618345]
[1721055956342,0.44861791,63258.0,63257.0,0.00618345]
[1721055957157,0.54861791,63258.0,63257.0,0.00618345]
[1721055958079,0.54961791,63258.0,63257.0,0.00618345]
[1721055958483,0.55061791,63258.0,63257.0,0.00818345]
[1721055958669,0.45061791,63258.0,63257.0,0.00818345]
[1721055958865,0.001,63258.0,63257.0,0.00618345]
[1721055959570,0.001,63258.0,63257.0,0.06668345]
[1721055959718,0.001,63258.0,63257.0,0.15079936]
[1721055959894,0.1666,63271.0,63257.0,0.15079936]
[1721055960094,0.2866,63269.0,63268.0,0.08105238]
[1721055960304,0.32871791,63269.0,63268.0,0.08105238]
[1721055960503,0.09491,63292.0,63268.0,0.08105238]
[1721055960504,0.1,63280.0,63268.0,0.08105238]
[1721055960844,0.12,63270.0,63269.0,0.08411591]
[1721055961041,0.12,63265.0,63264.0,0.08105238]
[1721055961191,0.2866,63262.0,63261.0,0.00306353]
[1721055961391,0.1666,63259.0,63258.0,0.00306353]
[1721055961601,0.00083,63276.0,63258.0,0.00306353]
[1721055961602,0.1,63266.0,63258.0,0.00306353]
[1721055961974,0.16211791,63266.0,63262.0,0.00306353]
[1721055962372,0.001,63265.0,63262.0,0.00306353]
[1721055962911,0.001,63265.0,63261.0,0.14735238]
[1721055962912,0.001,63265.0,63264.0,0.00306353]
[1721055964131,0.001,63265.0,63264.0,0.16113053]
[1721055964337,0.001,63265.0,63264.0,0.00306353]
[1721055964951,0.001,63265.0,63264.0,0.80388344]
[1721055965149,0.00083,63276.0,63274.0,0.00306353]
[1721055965487,0.00083,63276.0,63275.0,0.08105238]
[1721055965736,0.00083,63276.0,63275.0,0.79927238]
[1721055965960,0.00083,63276.0,63275.0,0.48319238]
[1721055966163,0.00083,63276.0,63275.0,1.29927238]
[1721055966371,0.00083,63276.0,63275.0,2.09747029]
[1721055966592,0.1,63310.0,63286.0,0.1]
[1721055966796,0.0009,63315.0,63295.0,0.08105238]
[1721055966797,0.4863143,63298.0,63295.0,0.08105238]
[1721055966998,0.4863143,63298.0,63286.0,0.258011]
[1721055966999,0.16211791,63297.0,63286.0,0.1]
[1721055967211,0.16211791,63297.0,63293.0,0.08105238]
[1721055967212,0.32871791,63297.0,63293.0,0.08105238]
[1721055967408,0.32871791,63297.0,63286.0,0.1]
[1721055967409,0.12,63295.0,63286.0,0.1]
[1721055967715,0.16211791,63295.0,63286.0,0.1]
[1721055968108,0.16211791,63295.0,63284.0,0.24555238]
[1721055968243,0.12,63292.0,63284.0,0.24555238]
[1721055968443,0.12,63292.0,63284.0,0.0645]
[1721055968642,0.12,63292.0,63284.0,0.14555238]
[1721055968915,0.16211791,63295.0,63284.0,0.14555238]
[1721055969122,0.16211791,63294.0,63284.0,0.14555238]
[1721055970101,0.12,63302.0,63284.0,0.14555238]
[1721055970302,0.1666,63300.0,63284.0,0.14555238]
[1721055970467,0.16211791,63299.0,63284.0,0.15955238]
[1721055970888,0.28211791,63299.0,63284.0,0.15955238]
[1721055971095,0.28211791,63299.0,63284.0,0.17355238]
[1721055971096,0.06,63293.0,63284.0,0.17355238]
[1721055971290,0.12,63291.0,63284.0,0.0925]
[1721055971486,0.12,63292.0,63284.0,0.0925]
[1721055972406,0.12,63288.0,63284.0,0.028]
[1721055973047,0.12,63285.0,63284.0,0.028]
[1721055973252,0.44871791,63285.0,63284.0,0.028]
[1721055973835,0.44871791,63285.0,63284.0,0.014]
[1721055974057,0.54871791,63285.0,63284.0,0.014]
[1721055974387,0.12,63274.0,63269.0,0.0618]
[1721055974630,0.12,63273.0,63268.0,0.15975238]
[1721055974825,0.12,63270.0,63264.0,0.0618]
[1721055975023,0.22,63284.0,63269.0,0.08105238]
[1721055975227,0.23898838,63317.0,63283.0,0.08105238]
[1721055975228,0.12,63287.0,63283.0,0.08105238]
[1721055975433,0.12,63292.0,63284.0,0.014]
[1721055975624,0.12,63291.0,63284.0,0.028]
[1721055975765,0.1,63290.0,63284.0,0.028]
[1721055975981,0.1666,63288.0,63284.0,0.028]
[1721055976193,0.32871791,63287.0,63284.0,0.028]
[1721055976394,0.1666,63285.0,63284.0,0.10905238]
[1721055976599,0.32871791,63285.0,63284.0,0.014]
[1721055976803,0.12,63296.0,63284.0,0.014]
[1721055977014,0.0009,63303.0,63284.0,0.014]
[1721055977015,0.12,63291.0,63284.0,0.014]
[1721055977249,0.12,63291.0,63285.0,0.08105238]
[1721055977250,0.28211791,63291.0,63285.0,0.08105238]
[1721055977484,0.16211791,63291.0,63285.0,0.08105238]
[1721055977913,0.28211791,63291.0,63285.0,0.08105238]
[1721055978122,0.12,63289.0,63285.0,0.08105238]
[1721055978319,0.12,63288.0,63285.0,0.08105238]
[1721055978520,0.16211791,63287.0,63285.0,0.014]
[1721055979166,0.32871791,63287.0,63285.0,0.014]
[1721055979385,0.32871791,63287.0,63268.0,0.0617]
[1721055979386,0.12,63274.0,63268.0,0.0617]
[1721055979719,0.12,63274.0,63263.0,0.06476353]
[1721055979720,0.16211791,63274.0,63263.0,0.06476353]
[1721055979888,0.12,63271.0,63263.0,0.0617]
[1721055980291,0.2866,63268.0,63261.0,0.0759]
[1721055980635,0.16211791,63268.0,63261.0,0.0759]
[1721055981075,0.16211791,63268.0,63263.0,0.014]
[1721055981282,0.15763582,63267.0,63263.0,0.014]
[1721055981553,0.15763582,63267.0,63261.0,0.08105238]
[1721055981676,0.15763582,63267.0,63261.0,0.09505238]
[1721055983145,0.1,63275.0,63263.0,0.014]
[1721055983363,0.1666,63274.0,63272.0,0.08105238]
[1721055983604,0.1666,63274.0,63264.0,0.00306353]
[1721055983605,0.1,63272.0,63264.0,0.00306353]
[1721055983804,0.1666,63270.0,63263.0,0.021]
[1721055984005,0.2666,63265.0,63263.0,0.014]
[1721055984257,0.26301791,63269.0,63263.0,0.014]
[1721055984258,0.42871791,63264.0,63263.0,0.014]
[1721055984584,0.42871791,63264.0,63263.0,0.021]
[1721055984896,0.42871791,63264.0,63263.0,0.014]
[1721055985699,0.1666,63258.0,63257.0,0.00618345]
[1721055985958,0.32871791,63258.0,63257.0,0.00618345]
[1721055986747,0.1666,63265.0,63257.0,0.00618345]
[1721055986983,0.1666,63265.0,63260.0,0.08105238]
[1721055986984,0.1666,63261.0,63260.0,0.08105238]
[1721055987212,0.2666,63259.0,63258.0,0.00306353]
[1721055987413,0.42871791,63259.0,63257.0,0.00918345]
[1721055987584,0.32871791,63258.0,63257.0,0.01518345]
[1721055988088,0.35271791,63258.0,63257.0,0.01818345]
[1721055989349,0.35271791,63258.0,63257.0,0.00918345]
[1721055989959,0.45171791,63258.0,63257.0,0.00618345]
[1721055990140,0.65171791,63258.0,63257.0,0.00618345]
[1721055990300,0.45171791,63258.0,63257.0,0.01718345]
[1721055990480,0.45171791,63258.0,63253.0,0.009174]
[1721055990481,0.2666,63256.0,63253.0,0.009174]
[1721055990686,0.45171791,63256.0,63253.0,0.009174]
[1721055991299,0.65171791,63256.0,63253.0,0.009174]
[1721055991499,0.55171791,63256.0,63253.0,0.009174]
[1721055991709,0.75171791,63256.0,63253.0,0.009174]
[1721055991909,0.75271791,63256.0,63255.0,0.012913]
[1721055992110,0.75271791,63256.0,63253.0,0.009174]
[1721055992336,0.4666,63254.0,63253.0,0.009174]
[1721055992535,0.65171791,63254.0,63253.0,0.009174]
[1721055992788,0.45171791,63254.0,63253.0,0.009174]
[1721055992937,0.65171791,63254.0,63253.0,0.009174]
[1721055993379,0.4675,63253.0,63252.0,0.001348]
[1721055993655,0.75261791,63253.0,63252.0,0.001348]
[1721055993856,0.55261791,63253.0,63252.0,0.001348]
[1721055994242,0.75261791,63253.0,63252.0,0.001348]
[1721055994645,0.55171791,63253.0,63252.0,0.001348]
[1721055995074,0.45171791,63253.0,63252.0,0.001348]
[1721055995241,0.35171791,63253.0,63252.0,0.001348]
[1721055995447,0.35171791,63253.0,63252.0,0.015348]
[1721055995448,0.45171791,63253.0,63252.0,0.015348]
[1721055995651,0.4666,63252.0,63251.0,0.000913]
[1721055995849,0.72871791,63252.0,63251.0,0.000913]
[1721055996017,0.75171791,63252.0,63251.0,0.000913]
[1721055996632,0.55171791,63252.0,63251.0,0.000913]
[1721055997042,0.75171791,63252.0,63251.0,0.000913]
[1721055997279,0.75171791,63252.0,63250.0,0.004837]
[1721055997280,0.4666,63251.0,63250.0,0.004837]
[1721055997507,0.2666,63241.0,63232.0,0.00306353]
[1721055997641,0.45171791,63241.0,63232.0,0.00306353]
[1721055997852,0.45171791,63241.0,63231.0,0.077]
[1721055998055,0.75171791,63241.0,63230.0,0.009174]
[1721055999320,0.55171791,63241.0,63230.0,0.009174]
[1721055999864,0.75171791,63241.0,63230.0,0.009174]
[1721056000267,0.55271791,63241.0,63230.0,0.009174]
[1721056000547,0.75271791,63241.0,63230.0,0.009174]
[1721056000756,0.1,63237.0,63230.0,0.009174]
[1721056000955,0.65171791,63241.0,63230.0,0.009174]
[1721056000956,0.4666,63231.0,63230.0,0.009174]
[1721056001164,0.62871791,63231.0,63230.0,0.009174]
[1721056001341,0.75171791,63231.0,63230.0,0.009174]
[1721056003214,0.75171791,63231.0,63230.0,0.0044963]
[1721056003419,0.2666,63216.0,63212.0,0.00288585]
[1721056003631,0.2,63220.0,63212.0,0.00288585]
[1721056003632,0.1666,63214.0,63212.0,0.00288585]
[1721056003830,0.38511791,63215.0,63212.0,0.00288585]
[1721056003831,0.32871791,63213.0,63212.0,0.00288585]
[1721056004035,0.35171791,63213.0,63212.0,0.00288585]
[1721056004449,0.1896,63213.0,63212.0,0.00288585]
[1721056004863,0.1896,63213.0,63212.0,0.01188585]
[1721056005243,0.001,63214.0,63212.0,0.01188585]
[1721056005445,0.001,63214.0,63213.0,0.2602]
[1721056005827,0.1666,63230.0,63213.0,0.2602]
[1721056006049,0.1,63231.0,63222.0,0.08105238]
[1721056006050,0.1,63224.0,63222.0,0.08105238]
[1721056006464,0.0009,63241.0,63213.0,0.1402]
[1721056006465,0.1,63220.0,63213.0,0.1402]
[1721056006813,0.1,63220.0,63210.0,1.3]
[1721056006814,0.1,63219.0,63218.0,0.08105238]
[1721056007367,0.123,63219.0,63218.0,0.08105238]
[1721056007543,0.223,63219.0,63218.0,0.08105238]
[1721056007974,0.38511791,63219.0,63218.0,0.07647483]
[1721056008175,0.58611791,63219.0,63218.0,0.08047483]
[1721056008802,0.38611791,63219.0,63218.0,0.08047483]
[1721056009204,0.38611791,63219.0,63218.0,0.08847483]
[1721056009585,0.58611791,63219.0,63218.0,0.08847483]
[1721056009842,0.38611791,63219.0,63218.0,0.012]
[1721056010015,0.1,63211.0,63210.0,1.3]
[1721056010240,0.46211791,63211.0,63210.0,1.3]
[1721056010417,0.56211791,63211.0,63210.0,1.3]
[1721056010595,0.58511791,63211.0,63210.0,1.3]
[1721056011021,0.58511791,63211.0,63210.0,1.25247]
[1721056011607,0.58601791,63211.0,63210.0,1.25247]
[1721056012035,0.58511791,63211.0,63210.0,1.26647]
[1721056012269,0.58511791,63211.0,63210.0,1.25447]
[1721056012408,0.68100791,63211.0,63210.0,0.76650437]
[1721056012620,0.7491087,63211.0,63210.0,0.69526097]
[1721056012824,0.68100791,63211.0,63210.0,0.69526097]
[1721056013229,0.78182515,63211.0,63210.0,0.49721329]
[1721056013895,0.88936026,63211.0,63210.0,0.49721329]
[1721056014551,0.88936026,63211.0,63210.0,0.46150595]
[1721056014552,0.79182515,63211.0,63210.0,0.46150595]
[1721056014750,1.02505068,63211.0,63210.0,0.46150595]
[1721056014930,0.1,63173.0,63169.0,0.033246]
[1721056015358,0.00306353,63172.0,63169.0,0.033246]
[1721056015564,0.00306353,63172.0,63166.0,1.074074]
[1721056015565,0.1,63171.0,63166.0,1.074074]
[1721056015706,0.1,63182.0,63166.0,1.074074]
[1721056015707,0.1,63169.0,63166.0,1.074074]
[1721056016113,0.3896,63169.0,63166.0,1.074074]
[1721056016768,0.2666,63168.0,63167.0,0.09373088]
[1721056016968,0.65171791,63168.0,63167.0,0.0126785]
[1721056017173,0.79501791,63168.0,63167.0,0.0126785]
[1721056017607,0.4666,63167.0,63166.0,0.009274]
[1721056017815,0.4666,63158.0,63157.0,0.00011]
[1721056018020,0.55171791,63158.0,63157.0,0.00011]
[1721056018908,0.55171791,63158.0,63157.0,0.08151]
[1721056019108,0.45171791,63158.0,63157.0,0.08151]
[1721056019312,0.45271791,63158.0,63157.0,0.08151]
[1721056019510,0.45571791,63158.0,63157.0,0.08151]
[1721056019709,0.45571791,63158.0,63157.0,0.00011]
[1721056019710,0.55271791,63158.0,63157.0,0.00011]
[1721056019936,0.55171791,63158.0,63157.0,0.00011]
[1721056020123,0.55471791,63158.0,63157.0,0.00011]
[1721056020537,0.45171791,63158.0,63157.0,0.00011]
[1721056021003,0.35171791,63158.0,63157.0,0.00011]
[1721056021410,0.45171791,63158.0,63157.0,0.00011]
[1721056021776,0.65271791,63158.0,63157.0,0.00011]
[1721056022050,0.45471791,63158.0,63157.0,0.00011]
[1721056022238,0.45271791,63158.0,63157.0,0.00011]
[1721056022596,0.75171791,63158.0,63157.0,0.00011]
[1721056022774,0.55371791,63158.0,63157.0,0.00011]
[1721056023019,0.55171791,63158.0,63157.0,0.00011]
[1721056023259,0.55371791,63158.0,63157.0,0.00011]
[1721056023715,0.75371791,63158.0,63157.0,0.00011]
[1721056025801,0.55371791,63158.0,63157.0,0.00011]
[1721056026029,0.55371791,63158.0,63157.0,0.13811]
[1721056026030,0.002,63158.0,63157.0,0.13811]
[1721056026451,0.32871791,63158.0,63157.0,0.13811]
[1721056027425,0.35171791,63158.0,63157.0,0.13811]
[1721056027793,0.75171791,63158.0,63157.0,0.00011]
[1721056027988,0.75171791,63158.0,63157.0,0.00311]
[1721056028311,0.75171791,63158.0,63157.0,0.00011]
[1721056028712,0.75271791,63158.0,63157.0,0.00011]
[1721056029385,0.55171791,63158.0,63157.0,0.00011]
[1721056029535,0.75171791,63158.0,63157.0,0.00011]
[1721056029914,0.89000791,63158.0,63157.0,0.00011]
[1721056030119,0.3,63147.0,63133.0,0.0637]
[1721056030323,0.75171791,63147.0,63133.0,0.0637]
[1721056030496,0.84670791,63147.0,63129.0,0.4863143]
[1721056030924,0.75171791,63147.0,63129.0,0.4863143]
[1721056031148,0.55171791,63147.0,63140.0,0.0603]
[1721056031378,0.55171791,63147.0,63141.0,0.08105238]
[1721056031581,0.56071791,63147.0,63146.0,0.010185]
[1721056031780,0.55171791,63147.0,63146.0,0.009185]
[1721056032225,0.56071791,63147.0,63146.0,0.010185]
[1721056032579,0.55171791,63147.0,63146.0,0.009185]
[1721056032792,0.77071791,63147.0,63146.0,0.010185]
[1721056034505,0.86570791,63147.0,63146.0,0.010185]
[1721056035457,1.05900791,63147.0,63146.0,0.010185]
[1721056035879,0.56159,63143.0,63122.0,0.0643]
[1721056036075,0.82370791,63143.0,63122.0,0.0643]
[1721056036278,0.62370791,63143.0,63122.0,0.0643]
[1721056036480,0.62370791,63143.0,63135.0,0.08105238]
[1721056036481,0.82370791,63143.0,63135.0,0.08105238]
[1721056037492,0.86700791,63143.0,63128.0,0.08105238]
[1721056037893,1.04837791,63143.0,63128.0,0.08105238]
[1721056038095,0.89000791,63143.0,63128.0,0.08105238]
[1721056038488,0.89000791,63143.0,63136.0,0.08105238]
[1721056038676,0.90400791,63143.0,63136.0,0.08105238]
[1721056038887,0.77201791,63143.0,63136.0,0.08105238]
[1721056039092,0.77201791,63143.0,63136.0,0.14305238]
[1721056039093,0.44271791,63143.0,63136.0,0.14305238]
[1721056039300,0.45671791,63143.0,63136.0,0.14305238]
[1721056039510,0.014,63143.0,63142.0,0.1508]
[1721056039964,0.028,63143.0,63142.0,0.1508]
[1721056040204,0.35671791,63143.0,63142.0,0.1508]
[1721056040730,0.35171791,63143.0,63142.0,0.1458]
[1721056041014,0.014,63143.0,63142.0,0.1458]
[1721056041545,0.1666,63145.0,63142.0,0.1458]
[1721056041771,0.1,63147.0,63144.0,0.08105238]
[1721056042712,0.2,63147.0,63144.0,0.08105238]
[1721056042911,0.1,63146.0,63144.0,0.08105238]
[1721056043113,0.26211791,63145.0,63144.0,0.08105238]
[1721056043411,0.38511791,63145.0,63144.0,0.08205238]
[1721056043617,0.1,63145.0,63144.0,0.08205238]
[1721056043826,0.36211791,63145.0,63144.0,0.08205238]
[1721056044597,0.26211791,63145.0,63144.0,0.08205238]
[1721056044796,0.26211791,63145.0,63144.0,0.08305238]
[1721056045026,0.26211791,63145.0,63144.0,0.08205238]
[1721056045027,0.28511791,63145.0,63144.0,0.08205238]
[1721056045249,0.28511791,63145.0,63144.0,0.08505238]
[1721056045738,0.1,63145.0,63144.0,0.08505238]
[1721056046016,0.1,63155.0,63144.0,0.08505238]
[1721056046219,0.2,63155.0,63154.0,0.08105238]
[1721056046440,0.1,63155.0,63154.0,0.08105238]
[1721056046644,0.2,63155.0,63154.0,0.08105238]
[1721056047052,0.1,63155.0,63154.0,0.08105238]
[1721056047410,0.27111791,63155.0,63154.0,0.08105238]
[1721056048035,0.57111791,63155.0,63154.0,0.08105238]
[1721056048239,0.56211791,63155.0,63154.0,0.08105238]
[1721056048537,0.68977691,63155.0,63154.0,0.08105238]
[1721056048894,0.58511791,63155.0,63154.0,0.08105238]
[1721056049104,0.39111791,63155.0,63154.0,0.08205238]
[1721056049305,0.26811791,63155.0,63154.0,0.08205238]
[1721056049562,0.26211791,63155.0,63154.0,0.08105238]
[1721056049954,0.46211791,63155.0,63154.0,0.08105238]
[1721056050205,0.56211791,63155.0,63154.0,0.08105238]
[1721056050605,0.56711791,63155.0,63154.0,0.08105238]
[1721056050821,0.67245741,63155.0,63154.0,0.08105238]
[1721056051355,0.69545741,63155.0,63154.0,0.08105238]
[1721056051552,0.69945741,63155.0,63154.0,0.08105238]
[1721056051761,0.86573859,63155.0,63154.0,0.08105238]
[1721056052030,0.86173859,63155.0,63154.0,0.08105238]
[1721056052153,0.3666,63145.0,63144.0,0.08105238]
[1721056052358,0.75171791,63145.0,63144.0,0.08105238]
[1721056052754,0.3666,63137.0,63136.0,0.08105238]
[1721056053022,0.72871791,63137.0,63136.0,0.08105238]
[1721056053192,0.55171791,63137.0,63136.0,0.08105238]
[1721056053397,0.45171791,63137.0,63136.0,0.08105238]
[1721056053608,0.42871791,63137.0,63136.0,0.08105238]
[1721056053799,0.32871791,63137.0,63136.0,0.15855238]
[1721056054237,0.35171791,63137.0,63136.0,0.15855238]
[1721056054914,0.35271791,63137.0,63136.0,0.15955238]
[1721056055526,0.35171791,63137.0,63136.0,0.15855238]
[1721056055728,0.45171791,63137.0,63136.0,0.15855238]
[1721056055934,0.65171791,63137.0,63136.0,0.15955238]
[1721056056132,0.55171791,63137.0,63136.0,0.001]
[1721056056629,0.65667497,63137.0,63136.0,0.001]
[1721056057010,0.85667497,63137.0,63136.0,0.001]
[1721056057210,0.55171791,63137.0,63136.0,0.001]
[1721056057454,0.45171791,63137.0,63131.0,0.0653]
[1721056057657,0.1666,63133.0,63131.0,0.0653]
[1721056058004,0.2896,63132.0,63131.0,0.0653]
[1721056058842,0.013,63137.0,63131.0,0.1448]
[1721056059049,0.1796,63137.0,63136.0,0.08105238]
[1721056059453,0.33271791,63137.0,63136.0,0.08105238]
[1721056059624,0.1666,63137.0,63136.0,0.08105238]
[1721056059854,0.1,63151.0,63136.0,0.22025238]
[1721056060062,0.1,63151.0,63150.0,0.08105238]
[1721056060893,0.2666,63151.0,63150.0,0.08105238]
[1721056061105,0.42871791,63151.0,63150.0,0.08105238]
[1721056061329,0.45671791,63151.0,63150.0,0.08105238]
[1721056061541,0.55671791,63151.0,63150.0,0.08105238]
[1721056062157,0.76171791,63151.0,63150.0,0.08105238]
[1721056062329,0.86422352,63151.0,63150.0,0.08105238]
[1721056062555,0.1,63141.0,63132.0,0.04699315]